bitfinex-derivatives/quotes_SOLF0:USTF0_20241103
["timestamp","ask_amount","ask_price","bid_price","bid_amount"]
[1730630720396,3.047,164.15,164.12,3.0474]
[1730630722110,3.047,164.15,164.13,3.0474]
[1730630723702,5.8669,164.16,164.13,3.0474]
[1730630727007,3.0472,164.15,164.12,3.0474]
[1730630728321,2.82,164.16,164.07,3.9369]
[1730630728518,3.0474,164.13,164.08,1.52420502]
[1730630728712,3.0474,164.13,164.07,3.9369]
[1730630728912,3.0474,164.13,164.08,1.52420935]
[1730630729212,3.0474,164.13,164.07,3.9369]
[1730630729213,3.0472,164.15,164.1,3.0478]
[1730630729412,2.82,164.16,164.08,1.52421139]
[1730630729723,2.82,164.16,164.07,3.9369]
[1730630729724,2.82,164.16,164.1,3.0479]
[1730630729922,3.0475,164.13,164.1,3.0479]
[1730630730525,3.0475,164.13,164.11,3.0478]
[1730630731422,3.0477,164.12,164.09,3.048]
[1730630732123,3.0477,164.12,164.08,1.52421327]
[1730630732425,3.0477,164.12,164.1,3.0479]
[1730630733323,3.0475,164.13,164.1,3.0479]
[1730630734422,3.0485,164.07,164.04,3.0489]
[1730630734721,2.8,164.12,164.0,3.9031]
[1730630734925,2.8,164.12,164.01,1.52472176]
[1730630735225,2.8,164.12,164.02,1.52472176]
[1730630735422,2.8,164.12,164.0,3.9031]
[1730630735727,3.0484,164.08,164.01,1.52475004]
[1730630736019,2.8,164.12,164.02,1.52475004]
[1730630736217,2.8,164.12,164.03,1.52475004]
[1730630736419,2.8,164.12,164.0,3.9031]
[1730630736420,2.8,164.12,164.04,1.52475004]
[1730630736615,2.8,164.12,164.0,3.9031]
[1730630736918,3.0481,164.1,164.06,3.0485]
[1730630737315,3.0481,164.09,164.06,3.0485]
[1730630742327,3.048,164.1,164.0,3.9031]
[1730630742920,2.8,164.12,164.0,3.9031]
[1730630743125,3.0482,164.09,164.06,3.0486]
[1730630744429,2.8,164.1,164.0,3.9031]
[1730630744731,5.848,164.1,164.07,3.0484]
[1730630746426,3.048,164.1,164.07,3.0484]
[1730630747133,3.0483,164.09,164.06,3.0487]
[1730630748030,3.0483,164.09,164.0,3.9031]
[1730630748230,2.8,164.11,164.07,3.0485]
[1730630748430,3.048,164.1,164.07,3.0485]
[1730630748842,1.2801,164.15,164.02,4.3245507]
[1730630749034,3.0474,164.13,164.1,3.0479]
[1730630749229,2.8,164.13,164.1,3.0479]
[1730630749427,3.0466,164.17,164.1,3.0479]
[1730630749729,2.8,164.16,164.1,3.0479]
[1730630749929,2.6323,164.2,164.1,3.0479]
[1730630749930,2.8,164.15,164.1,3.0479]
[1730630750127,3.0475,164.13,164.1,3.0479]
[1730630751430,2.8,164.14,164.12,3.0474]
[1730630751634,2.8,164.14,164.06,4.0373]
[1730630752338,3.0475,164.13,164.09,3.0481]
[1730630754044,5.8473,164.14,164.11,3.0476]
[1730630754636,2.6323,164.2,164.06,4.0373]
[1730630754637,5.847,164.16,164.13,3.0473]
[1730630754831,5.847,164.16,164.08,2.99388446]
[1730630754832,1.255,164.2,164.09,1.52436656]
[1730630755037,1.255,164.2,164.08,2.99388446]
[1730630755038,2.8,164.17,164.1,1.52416789]
[1730630755240,5.8468,164.17,164.13,3.0472]
[1730630755838,5.8468,164.17,164.14,3.0471]
[1730630757140,3.0471,164.15,164.12,3.0475]
[1730630758437,2.8,164.17,164.09,3.10396454]
[1730630758642,2.8,164.17,164.06,6.8373]
[1730630758643,3.0471,164.15,164.12,3.0475]
[1730630759044,5.8468,164.17,164.14,3.0472]
[1730630759245,19.6304,164.25,164.09,2.99272771]
[1730630759446,2.7321,164.25,164.1,4.32409876]
[1730630759640,3.0462,164.2,164.17,3.0466]
[1730630760044,2.8,164.21,164.17,3.0466]
[1730630760248,3.0463,164.19,164.16,3.0467]
[1730630760543,2.8,164.21,164.12,4.0692]
[1730630760737,3.0463,164.19,164.16,3.0467]
[1730630761137,2.8,164.21,164.13,1.52393138]
[1730630761446,4.0335,164.25,164.12,4.0692]
[1730630761744,2.8,164.22,164.13,1.5239082]
[1730630761952,2.8,164.22,164.12,43.46558293]
[1730630762245,2.8,164.22,164.13,1.5239082]
[1730630762450,2.8,164.22,164.12,43.46558293]
[1730630762649,4.0335,164.25,164.13,1.52391306]
[1730630762846,3.046,164.21,164.15,3.0469]
[1730630763042,3.046,164.21,164.13,1.52391306]
[1730630763249,3.046,164.21,164.12,43.46558293]
[1730630763446,3.046,164.21,164.14,1.523898]
[1730630763746,3.046,164.21,164.12,43.46558293]
[1730630764044,3.046,164.21,164.13,1.5238948]
[1730630764249,3.046,164.21,164.18,3.0464]
[1730630764843,2.8,164.23,164.13,1.52389683]
[1730630765047,2.8,164.23,164.14,1.52389683]
[1730630765344,2.8,164.23,164.12,43.46558293]
[1730630765646,2.8,164.23,164.15,3.0469]
[1730630765647,3.0464,164.19,164.15,3.0469]
[1730630768041,3.0464,164.19,164.13,1.52394621]
[1730630768250,3.0464,164.19,164.16,3.0468]
[1730630769857,2.8,164.23,164.13,1.52391859]
[1730630770044,2.8,164.23,164.12,43.46558293]
[1730630770248,2.8,164.23,164.13,1.52389096]
[1730630770446,2.8,164.23,164.12,43.46558293]
[1730630770651,2.8,164.23,164.13,1.52389096]
[1730630770852,3.0463,164.19,164.15,3.047]
[1730630772737,3.0463,164.19,164.16,3.0467]
[1730630774948,2.8,164.23,164.12,43.46558293]
[1730630775147,2.8,164.22,164.13,1.52390281]
[1730630775348,2.8,164.22,164.14,1.52390281]
[1730630775553,5.8458,164.22,164.18,3.0463]
[1730630775854,2.8,164.22,164.18,3.0463]
[1730630776341,2.8,164.22,164.14,1.52380909]
[1730630776542,2.8,164.22,164.2,3.0459]
[1730630776748,3.0453,164.25,164.14,2.8]
[1730630776948,5.8453,164.25,164.15,1.52377325]
[1730630777148,5.8453,164.25,164.14,2.8]
[1730630777149,2.8,164.25,164.16,1.52377325]
[1730630777349,11.22511552,164.29,164.16,1.52377325]
[1730630777549,2.8,164.26,164.17,1.52377325]
[1730630777752,2.8,164.26,164.21,3.0457]
[1730630778562,3.0453,164.25,164.21,3.0457]
[1730630781463,2.8,164.26,164.18,1.3012]
[1730630781759,2.8,164.26,164.19,3.0461]
[1730630782363,3.0457,164.22,164.19,3.0461]
[1730630783166,3.0462,164.2,164.17,3.0465]
[1730630784162,3.0462,164.2,164.18,3.0464]
[1730630784564,3.0462,164.2,164.14,2.8]
[1730630785672,3.0466,164.18,164.12,39.39638293]
[1730630785861,3.0466,164.18,164.13,1.52377142]
[1730630786268,3.0466,164.18,164.13,1.52377832]
[1730630786576,3.0466,164.18,164.12,39.39638293]
[1730630786782,2.8,164.22,164.14,3.047]
[1730630786979,2.8,164.22,164.12,39.39638293]
[1730630788477,2.8,164.22,164.13,3.0473]
[1730630789165,3.0468,164.17,164.14,3.0471]
[1730630792077,3.0468,164.17,164.12,39.39638293]
[1730630792382,5.8466,164.18,164.12,39.39638293]
[1730630793382,3.0468,164.17,164.12,39.39638293]
[1730630793582,2.8,164.18,164.12,39.39638293]
[1730630794084,3.0467,164.17,164.14,3.0471]
[1730630794684,5.8465,164.18,164.15,3.047]
[1730630795384,2.8,164.18,164.12,39.39638293]
[1730630796782,3.0468,164.16,164.12,39.39638293]
[1730630797188,2.8,164.18,164.12,39.39638293]
[1730630799288,3.0472,164.15,164.12,42.44388293]
[1730630799488,2.8,164.14,164.12,42.44388293]
[1730630799879,3.0474,164.13,164.1,3.0479]
[1730630800086,2.8,164.14,164.06,1.52415485]
[1730630800283,2.8,164.14,164.05,3.9779]
[1730630800481,3.0477,164.12,164.09,3.048]
[1730630801188,3.0477,164.12,164.06,1.52433469]
[1730630801189,3.0474,164.13,164.1,3.0479]
[1730630803389,2.8,164.14,164.1,3.0479]
[1730630803390,3.0476,164.12,164.1,3.0479]
[1730630803696,2.8,164.14,164.07,3.0485]
[1730630804192,2.8,164.14,164.05,3.9779]
[1730630804388,3.0479,164.11,164.08,3.0482]
[1730630804588,2.8,164.14,164.08,3.0482]
[1730630805692,3.048,164.1,164.08,3.0482]
[1730630805897,2.8,164.1,164.05,3.9779]
[1730630806085,2.8,164.1,164.06,1.52450429]
[1730630806391,5.848,164.1,164.05,3.9779]
[1730630806689,5.848,164.1,164.07,3.0484]
[1730630806891,2.8,164.1,164.05,3.9779]
[1730630807690,2.8,164.1,164.08,3.0482]
[1730630809983,5.8479,164.1,164.08,3.0482]
[1730630812683,2.8,164.1,164.08,3.0482]
[1730630818709,3.0483,164.09,164.07,3.0485]
[1730630818898,2.8,164.1,164.07,3.0485]
[1730630819704,5.848,164.1,164.07,3.0485]
[1730630820506,2.8,164.1,164.07,3.0485]
[1730630821405,3.0482,164.09,164.07,3.0485]
[1730630822398,3.0483,164.09,164.06,3.0486]
[1730630822593,3.0483,164.09,164.05,3.9779]
[1730630822594,2.8,164.1,164.05,3.9779]
[1730630823401,2.8,164.13,164.05,3.9779]
[1730630823607,2.8,164.13,164.1,3.0479]
[1730630823608,5.8475,164.13,164.1,3.0479]
[1730630826608,4.0762,164.18,164.08,3.00016847]
[1730630826609,1.363,164.18,164.08,3.00016847]
[1730630826810,2.8,164.15,164.08,1.52423062]
[1730630827007,2.8,164.15,164.05,3.9779]
[1730630827008,2.8,164.15,164.06,1.52423062]
[1730630827207,2.8,164.15,164.05,3.9779]
[1730630827208,2.8,164.15,164.07,1.52417437]
[1730630827414,2.8,164.15,164.08,4.54171657]
[1730630827614,5.8471,164.15,164.12,3.0475]
[1730630828010,3.0471,164.15,164.12,3.0475]
[1730630829112,20.9543,164.23,164.08,3.02241903]
[1730630829413,20.9543,164.23,164.14,3.0471]
[1730630829414,3.0468,164.17,164.14,3.0471]
[1730630829613,5.8468,164.17,164.14,3.0471]
[1730630830914,3.0466,164.18,164.15,3.0469]
[1730630831110,5.8466,164.18,164.15,3.0469]
[1730630833115,3.0466,164.17,164.15,3.0469]
[1730630834313,3.0466,164.17,164.11,5.47777972]
[1730630834513,3.0466,164.17,164.14,3.0471]
[1730630835114,2.8,164.18,164.11,5.47777972]
[1730630835321,3.0468,164.16,164.13,3.0473]
[1730630837419,3.0468,164.16,164.14,3.0472]
[1730630838218,2.8,164.18,164.11,1.3611]
[1730630838417,2.8,164.18,164.05,2.8]
[1730630838730,2.8,164.18,164.06,1.52417244]
[1730630838922,2.8,164.18,164.07,1.52417244]
[1730630839123,2.8,164.18,164.08,1.52417244]
[1730630839324,2.8,164.18,164.04,3.9958]
[1730630839628,2.8,164.18,164.05,1.52428343]
[1730630839830,1.2575,164.17,164.06,1.52428343]
[1730630840121,1.2575,164.17,164.04,3.9958]
[1730630840324,1.2575,164.17,164.05,1.52445879]
[1730630840525,2.6705,164.16,164.04,3.9958]
[1730630840736,2.6705,164.16,164.05,1.52451695]
[1730630841028,2.6705,164.16,164.06,3.0486]
[1730630841915,3.0481,164.1,164.06,3.0486]
[1730630842125,2.8,164.1,164.05,1.52455069]
[1730630842323,2.8,164.1,164.04,3.9958]
[1730630842728,2.8,164.1,164.05,1.52455069]
[1730630842916,3.0482,164.09,164.06,3.0486]
[1730630843117,2.8,164.1,164.06,3.0486]
[1730630843833,2.8,164.1,164.05,1.52449539]
[1730630844031,2.8,164.1,164.09,3.0481]
[1730630856238,2.8,164.1,163.98,6.1003]
[1730630856444,3.0484,164.08,164.05,3.0488]
[1730630857133,3.0484,164.08,164.06,1.52457416]
[1730630857331,3.0484,164.08,164.05,3.0488]
[1730630859334,3.0484,164.08,164.06,1.52458697]
[1730630859534,3.0484,164.08,164.05,3.0487]
[1730630859735,3.0484,164.08,164.06,1.52458716]
[1730630860034,3.0484,164.08,164.05,3.0487]
[1730630861422,3.0484,164.08,164.06,1.52460648]
[1730630861626,3.0484,164.08,164.05,3.0487]
[1730630862226,3.0484,164.08,164.06,1.52458555]
[1730630862426,3.0484,164.08,164.05,3.0487]
[1730630862721,3.0484,164.08,164.06,1.52458531]
[1730630863034,3.0484,164.08,164.05,3.0487]
[1730630863233,3.0484,164.08,164.06,1.52458759]
[1730630863533,3.0484,164.08,164.05,3.0487]
[1730630863734,3.0484,164.08,164.06,1.52458759]
[1730630863928,3.0484,164.08,164.05,3.0487]
[1730630864333,3.0484,164.08,164.06,1.52458759]
[1730630864636,3.0484,164.08,164.05,3.0487]
[1730630864838,3.0484,164.08,164.06,1.52458555]
[1730630865041,3.0484,164.08,164.05,3.0487]
[1730630865335,3.0484,164.08,164.06,1.52458555]
[1730630865525,3.0484,164.08,164.05,3.0487]
[1730630865731,3.0484,164.08,164.06,1.52458759]
[1730630866031,3.0484,164.08,164.05,3.0487]
[1730630866339,3.0484,164.08,164.06,4.57328759]
[1730630866532,2.8,164.1,164.06,3.0487]
[1730630866735,3.0481,164.09,164.07,3.0485]
[1730630867038,2.8,164.1,164.07,3.0485]
[1730630867539,5.848,164.1,164.07,3.0483]
[1730630867834,5.848,164.1,164.0,3.9565]
[1730630868034,5.848,164.1,164.08,3.0483]
[1730630868535,5.848,164.1,164.07,3.0484]
[1730630871233,5.848,164.1,164.08,1.52452391]
[1730630871435,5.848,164.1,164.07,3.0484]
[1730630874240,5.848,164.1,164.08,1.52452391]
[1730630874441,5.848,164.1,164.07,3.0484]
[1730630874642,5.848,164.1,164.08,1.52452391]
[1730630874838,5.848,164.1,164.07,3.0484]
[1730630881943,2.8,164.11,164.01,2.8]
[1730630882241,2.8,164.11,164.02,1.52452291]
[1730630882543,5.8477,164.12,164.08,3.0481]
[1730630882949,3.0478,164.11,164.08,3.0481]
[1730630885944,2.8,164.12,164.01,2.8]
[1730630886143,3.0475,164.13,164.1,3.0479]
[1730630886442,1.2575,164.17,164.01,2.8]
[1730630886641,3.0473,164.14,164.12,3.0475]
[1730630887839,2.8,164.15,164.14,3.0471]
[1730630888151,2.8,164.17,164.09,1.3271]
[1730630888344,2.8,164.18,164.1,1.52412317]
[1730630888539,2.8,164.18,164.11,1.52412317]
[1730630888851,3.0466,164.17,164.14,3.0471]
[1730630895060,2.8,164.18,164.09,40.5861719]
[1730630895445,2.8,164.18,164.1,1.52407253]
[1730630895648,2.8,164.18,164.09,40.5861719]
[1730630895853,2.8,164.18,164.11,3.0476]
[1730630895854,3.0471,164.15,164.11,3.0476]
[1730630897252,3.0471,164.15,164.12,3.0475]
[1730630898456,3.0471,164.15,164.09,40.5861719]
[1730630898457,18.29,164.22,164.09,40.5861719]
[1730630898655,3.9359,164.23,164.09,40.5861719]
[1730630898656,18.29,164.2,164.09,39.2590719]
[1730630898853,18.29,164.2,163.96,58.97225594]
[1730630898854,12.25811538,164.19,164.03,1.3687]
[1730630899052,19.31280059,164.18,164.06,3.0486]
[1730630899262,3.0481,164.1,164.06,3.0486]
[1730630899455,5.8481,164.1,164.06,3.0486]
[1730630900059,3.0482,164.09,164.06,3.0486]
[1730630901059,5.848,164.1,164.06,3.0486]
[1730630903262,5.848,164.1,164.07,1.52457019]
[1730630903464,5.848,164.1,164.06,3.0486]
[1730630903760,5.848,164.1,164.07,1.52457019]
[1730630903970,5.848,164.1,164.06,3.0486]
[1730630904358,5.848,164.1,164.07,1.52457323]
[1730630904558,5.848,164.1,164.06,3.0486]
[1730630904766,5.848,164.1,164.07,1.52457019]
[1730630904968,5.848,164.1,164.06,3.0486]
[1730630905162,5.848,164.1,164.07,1.52457019]
[1730630905364,5.848,164.1,164.06,3.0486]
[1730630905666,5.848,164.1,164.07,1.52457019]
[1730630905854,5.848,164.1,164.06,3.0486]
[1730630906163,5.848,164.1,164.07,1.52457019]
[1730630906366,5.848,164.1,164.06,3.0486]
[1730630906665,5.848,164.1,164.07,1.52457019]
[1730630906866,5.848,164.1,164.06,3.0486]
[1730630907067,5.848,164.1,164.07,1.52457019]
[1730630907259,5.848,164.1,164.06,3.0486]
[1730630907461,5.848,164.1,164.07,1.52457019]
[1730630907661,5.848,164.1,164.06,3.0486]
[1730630907963,5.848,164.1,164.07,1.52457019]
[1730630908167,5.848,164.1,164.06,3.0486]
[1730630908355,5.848,164.1,164.07,1.52457019]
[1730630908560,5.848,164.1,164.06,3.0486]
[1730630908858,5.848,164.1,164.07,1.52456862]
[1730630909061,5.848,164.1,164.06,3.0486]
[1730630909263,5.848,164.1,164.07,1.52456862]
[1730630909461,5.848,164.1,164.06,3.0486]
[1730630909662,5.848,164.1,164.07,1.52457038]
[1730630909862,5.848,164.1,164.06,3.0486]
[1730630910065,5.848,164.1,164.07,1.52456834]
[1730630910278,5.848,164.1,164.06,3.0486]
[1730630910568,5.848,164.1,164.07,1.52451304]
[1730630910764,3.8314,164.17,164.03,1.3687]
[1730630910969,2.8,164.16,164.04,4.32441748]
[1730630911162,2.8,164.16,164.05,1.52441748]
[1730630911370,2.8,164.16,164.11,3.0476]
[1730630912357,3.0473,164.14,164.04,2.8]
[1730630912764,3.0473,164.14,164.1,3.0478]
[1730630913167,2.8,164.16,164.1,3.0478]
[1730630913359,3.0473,164.14,164.1,3.0478]
[1730630916981,2.8,164.16,164.08,3.0482]
[1730630917269,2.8,164.16,164.09,1.52432445]
[1730630917478,2.8,164.16,164.05,37.65113202]
[1730630917680,2.8,164.16,164.06,1.52437492]
[1730630917879,2.8,164.16,164.07,1.52437492]
[1730630918074,2.8,164.16,164.08,1.52437492]
[1730630918269,3.0477,164.12,164.09,4.57247492]
[1730630918470,5.8477,164.12,164.09,3.0481]
[1730630927475,3.0479,164.11,164.08,3.0483]
[1730630927681,2.8,164.12,164.09,1.52440204]
[1730630927886,2.8,164.12,164.05,37.65113202]
[1730630928087,2.8,164.12,164.06,1.52437439]
[1730630928278,2.8,164.12,164.07,1.52437439]
[1730630928589,2.8,164.12,164.08,1.52437439]
[1730630928786,5.8476,164.12,164.09,4.57237439]
[1730630928989,5.8476,164.12,164.1,1.52437439]
[1730630929187,5.8476,164.12,164.09,3.048]
[1730630932375,5.8476,164.12,164.1,1.52437424]
[1730630932675,5.8476,164.12,164.09,3.048]
[1730630932887,5.8476,164.12,164.1,1.52437424]
[1730630933090,2.8,164.12,164.05,37.65113202]
[1730630933280,2.8,164.12,164.06,1.5243722]
[1730630933586,2.8,164.12,164.07,1.5243722]
[1730630933788,2.8,164.12,164.09,3.048]
[1730630933988,2.8,164.12,164.1,1.5243722]
[1730630934189,2.8,164.12,164.09,3.048]
[1730630934388,2.8,164.12,164.1,1.52437424]
[1730630934681,2.8,164.12,164.09,3.048]
[1730630934884,2.8,164.12,164.1,1.52437424]
[1730630935076,2.8,164.12,164.09,3.048]
[1730630935276,2.8,164.12,164.11,3.0478]
[1730630935477,2.8,164.12,164.11,4.57217424]
[1730630941188,1.2631,164.17,164.11,1.52437424]
[1730630941393,11.24711212,164.2,164.08,5.79985873]
[1730630941700,2.8,164.19,164.09,2.87560882]
[1730630942000,3.0466,164.18,164.14,3.0471]
[1730630944098,5.8466,164.18,164.14,3.0471]
[1730630952397,5.8466,164.18,164.09,1.3515]
[1730630952598,5.8466,164.18,164.15,3.047]
[1730630954907,5.8466,164.18,164.09,1.3515]
[1730630954908,2.8,164.18,164.09,1.3515]
[1730630955103,2.8,164.18,164.1,1.52408424]
[1730630955406,2.8,164.18,164.11,1.52408424]
[1730630955712,3.0473,164.14,164.11,3.0476]
[1730630956712,3.0475,164.13,164.1,3.0479]
[1730630958506,2.8,164.14,164.06,2.6293]
[1730630958716,2.8,164.14,164.07,1.52427635]
[1730630958901,2.8,164.14,164.08,1.52427635]
[1730630959102,3.0479,164.11,164.06,2.6293]
[1730630959306,3.0479,164.11,164.07,4.57298507]
[1730630959512,2.8,164.14,164.08,1.52448507]
[1730630959709,3.0479,164.11,164.07,3.0485]
[1730630959909,19.5947,164.2,164.12,3.0475]
[1730630960112,14.04205283,164.19,164.12,3.0475]
[1730630960310,2.8,164.19,164.12,3.0475]
[1730630961009,3.0472,164.15,164.12,3.0475]
[1730630966508,2.8,164.16,164.13,3.0472]
[1730630966819,2.8,164.17,164.08,3.0159521]
[1730630967119,2.8,164.17,164.09,1.52408084]
[1730630967320,5.8468,164.17,164.13,3.0473]
[1730630970521,3.0468,164.17,164.13,3.0473]
[1730630972822,3.0468,164.17,164.09,3.05654075]
[1730630973023,3.0468,164.17,164.1,1.52407157]
[1730630973326,3.0468,164.17,164.13,3.0472]
[1730630975216,3.047,164.16,164.14,1.52401644]
[1730630975411,2.8,164.18,164.09,3.11047349]
[1730630975625,2.8,164.18,164.13,3.0473]
[1730630975821,3.0467,164.17,164.14,1.52399707]
[1730630976025,3.0467,164.17,164.13,3.0473]
[1730630976216,3.0467,164.17,164.14,1.52398829]
[1730630976418,3.0467,164.17,164.13,3.0473]
[1730630976628,3.0467,164.17,164.14,1.52404244]
[1730630976826,3.0467,164.17,164.13,3.0473]
[1730630977015,3.0467,164.17,164.14,1.52398607]
[1730630977214,3.0467,164.17,164.13,3.0473]
[1730630977419,3.0467,164.17,164.14,1.52398824]
[1730630977620,3.0467,164.17,164.13,3.0473]
[1730630977920,3.0467,164.17,164.14,1.52398829]
[1730630978114,3.0467,164.17,164.13,3.0473]
[1730630978325,3.0467,164.17,164.14,1.52399104]
[1730630978529,3.0467,164.17,164.13,3.0473]
[1730630978730,3.0467,164.17,164.14,1.5239906]
[1730630979027,3.0467,164.17,164.13,3.0473]
[1730630979225,3.0467,164.17,164.14,1.52396085]
[1730630979526,3.0467,164.17,164.13,3.0473]
[1730630979726,3.0467,164.17,164.14,1.52396276]
[1730630979930,3.0467,164.17,164.14,3.0471]
[1730630980231,3.0462,164.2,164.15,1.52384584]
[1730630980527,3.0462,164.2,164.1,2.8]
[1730630980528,2.8,164.2,164.16,1.52384584]
[1730630980730,2.8,164.2,164.1,2.8]
[1730630980924,5.8461,164.2,164.13,1.3279]
[1730630981129,30.24977506,164.21,164.18,3.0463]
[1730630985222,30.24977506,164.21,164.14,4.4343507]
[1730630985425,2.8,164.24,164.23,3.0455]
[1730630987427,3.045,164.26,164.23,3.0455]
[1730630987731,5.845,164.26,164.23,3.0455]
[1730630990035,3.045,164.26,164.23,3.0455]
[1730630990334,1.3572,164.32,164.14,7.2343507]
[1730630990335,5.8447,164.28,164.24,3.0452]
[1730630990729,3.0447,164.28,164.24,3.0452]
[1730630991029,5.8446,164.29,164.26,3.045]
[1730630991225,5.8446,164.29,164.2,1.2717]
[1730630991534,5.8446,164.29,164.25,3.045]
[1730630991941,5.8446,164.29,164.2,1.2717]
[1730630992142,8.4778282,164.48,164.2,2.79487833]
[1730630992435,1.0215822,164.47,164.22,36.59]
[1730630992622,1.3372,164.49,164.24,36.59]
[1730630992828,1.3372,164.49,164.25,39.37]
[1730630993024,2.7191,164.5,164.25,39.37]
[1730630993228,30.22391034,164.55,164.25,39.37]
[1730630993229,3.0401,164.53,164.44,3.0415]
[1730630993437,1.3372,164.54,164.44,3.0415]
[1730630993635,1.3791,164.53,164.37,4.37431706]
[1730630993822,3.0406,164.5,164.42,3.0419]
[1730630994027,3.0406,164.5,164.43,2.78]
[1730630994230,1.3791,164.53,164.37,1.3506]
[1730630994451,1.3791,164.53,164.38,2.78]
[1730630995331,3.0404,164.51,164.44,3.0416]
[1730630995635,3.0404,164.51,164.44,5.8216]
[1730630997238,3.0404,164.51,164.45,3.0413]
[1730630999140,1.3791,164.53,164.38,2.7111]
[1730630999342,3.0409,164.48,164.38,2.7111]
[1730630999542,3.0409,164.48,164.39,2.78]
[1730631000432,3.0409,164.48,164.42,3.042]
[1730631000943,2.78,164.51,164.37,1.3506]
[1730631001135,1.27,164.47,164.37,1.3506]
[1730631001329,2.78,164.46,164.36,34.15488569]
[1730631001532,3.042,164.43,164.36,36.93488569]
[1730631001741,2.6776,164.45,164.36,36.93488569]
[1730631001937,3.0418,164.43,164.36,36.93488569]
[1730631003230,3.0418,164.43,164.37,3.0429]
[1730631003645,5.7192,164.45,164.36,36.93488569]
[1730631003843,5.7192,164.45,164.39,3.0425]
[1730631004344,3.042,164.43,164.37,3.0428]
[1730631004530,2.6776,164.45,164.36,36.93488569]
[1730631005046,2.92,164.5,164.37,1.52135182]
[1730631005249,2.92,164.49,164.37,1.3382]
[1730631005545,2.92,164.49,164.37,2.85952453]
[1730631005946,3.0412,164.47,164.41,3.0421]
[1730631008052,3.0412,164.47,164.39,2.92]
[1730631008252,3.0412,164.47,164.42,3.042]
[1730631009151,3.0409,164.48,164.43,3.0418]
[1730631009555,2.92,164.49,164.39,2.92]
[1730631009765,3.0414,164.46,164.41,3.0421]
[1730631010844,3.0414,164.46,164.39,2.92]
[1730631011059,3.0414,164.46,164.42,3.042]
[1730631013266,2.92,164.49,164.37,3.992]
[1730631013468,2.92,164.49,164.4,3.0422]
[1730631013469,3.0416,164.45,164.4,3.0422]
[1730631014275,2.92,164.49,164.4,3.0422]
[1730631014874,3.0417,164.44,164.4,3.0422]
[1730631017170,2.92,164.49,164.39,3.0425]
[1730631017674,2.92,164.49,164.37,3.992]
[1730631017869,2.92,164.49,164.36,37.07488569]
[1730631018274,3.0414,164.46,164.37,3.0429]
[1730631018577,6.8974,164.45,164.37,3.0429]
[1730631018877,6.8974,164.45,164.4,3.0424]
[1730631020270,3.0419,164.43,164.4,3.0424]
[1730631020663,3.0419,164.43,164.36,37.07488569]
[1730631020864,3.0419,164.43,164.39,3.0425]
[1730631024070,6.8974,164.45,164.39,3.0425]
[1730631024269,3.0421,164.42,164.39,3.0425]
[1730631030573,2.92,164.45,164.37,2.92]
[1730631030774,2.92,164.45,164.4,3.0424]
[1730631030969,2.92,164.45,164.38,1.2772]
[1730631031175,2.92,164.48,164.38,1.2772]
[1730631031767,2.92,164.49,164.38,2.5677]
[1730631031968,2.92,164.49,164.38,3.8174]
[1730631032470,3.0417,164.44,164.41,3.0421]
[1730631040884,3.041,164.48,164.44,3.0416]
[1730631041089,2.88,164.5,164.4,2.88]